fUSD/lending_fUSD_20260311
["ID","MTS","AMOUNT","RATE_DAILY","PERIOD"]
[408188438,1773196242467,-651.58864472,0.00041,30]
[408188439,1773196242476,-311.05050218,0.00041068,22]
[408188440,1773196242485,-300.0,0.00041096,120]
[408188441,1773196242494,-300.0,0.00041096,120]
[408188442,1773196242503,-786.0,0.00041096,120]
[408188443,1773196242512,-246.04,0.00041096,60]
[408188444,1773196242523,-2500.0,0.00041096,120]
[408188445,1773196242532,-300.0,0.00041096,120]
[408188446,1773196242541,-300.0,0.00041096,120]
[408188447,1773196242551,-500.0,0.00041108,60]
[408188448,1773196242560,-848.0,0.00041109,11]
[408188449,1773196242569,-2807.0,0.00041109,11]
[408188450,1773196242578,-151.0,0.00041109,60]
[408188451,1773196242586,-153.0,0.000412,120]
[408188452,1773196242600,-786.0,0.0004137,120]
[408188453,1773196242609,-150.0,0.0004137,20]
[408188454,1773196242618,-150.0,0.0004137,60]
[408188455,1773196242627,-150.0,0.0004137,60]
[408188456,1773196242638,-500.0,0.0004137,60]
[408188457,1773196242647,-151.61662366,0.0004137,60]
[408188458,1773196242656,-150.0,0.0004137,60]
[408188459,1773196242667,-205.69153051,0.0004137,60]
[408188460,1773196242677,-153.0,0.000414,120]
[408188461,1773196242687,-20223.63,0.000414,14]
[408188462,1773196242696,-150.0,0.00041425,20]
[408188463,1773196242707,-250.0,0.00041425,60]
[408188464,1773196242718,-202.58174361,0.00041425,60]
[408188465,1773196242729,-500.0,0.00041425,60]
[408188466,1773196242738,-150.0,0.00041425,60]
[408188467,1773196242748,-2336.0,0.00041429,11]
[408188468,1773196242757,-150.0,0.0004148,20]
[408188469,1773196242766,-500.0,0.0004148,60]
[408188470,1773196242775,-150.0,0.0004148,60]
[408188471,1773196242783,-255.44933633,0.000415,120]
[408188472,1773196242793,-150.0,0.00041534,20]
[408188473,1773196242802,-500.0,0.00041534,60]
[408188474,1773196242811,-247.84097861,0.00041534,60]
[408188475,1773196242820,-183.49211443,0.00041589,20]
[408188476,1773196242832,-786.0,0.00041644,120]
[408188477,1773196242843,-1000.0,0.00041644,10]
[408188478,1773196242853,-198.14,0.000417,14]
[408188479,1773196242862,-151.77131007,0.000418,90]
[408188480,1773196242871,-350.0,0.00041878,10]
[408188481,1773196242879,-513.52736842,0.000419,2]
[408188482,1773196242888,-786.0,0.00041918,120]
[408188483,1773196242898,-151.0,0.00041918,120]
[408188484,1773196242906,-196.636787,0.00041918,120]
[408188485,1773196242916,-151.0,0.00041918,120]
[408188486,1773196242926,-151.0,0.00041918,120]
[408188487,1773196242938,-151.0,0.00041918,120]
[408188488,1773196242948,-151.0,0.00041918,120]
[408188489,1773196242958,-151.0,0.00041918,120]
[408188490,1773196242968,-151.0,0.00041918,120]
[408188491,1773196242977,-151.0,0.00041918,120]
[408188492,1773196242988,-229.012841,0.00041918,120]
[408188493,1773196242998,-151.0,0.00041918,120]
[408188494,1773196243007,-217.96833,0.00041918,120]
[408188495,1773196243016,-254.130547,0.00041918,120]
[408188496,1773196243025,-154.86,0.00042,120]
[408188497,1773196243034,-1000.0,0.00042,120]
[408188499,1773196243043,-1000.0,0.00042,120]
[408188500,1773196243052,-181.26164079,0.00042,30]
[408188501,1773196243061,-2477.8,0.0004203,2]
[408188502,1773196243070,-161.48249124,0.00042121,120]
[408188503,1773196243079,-150.0,0.00042173,120]
[408188504,1773196243087,-786.0,0.00042192,120]
[408188505,1773196243097,-502.0,0.000422,25]
[408188506,1773196243106,-457.048,0.0004222,7]
[408188507,1773196243114,-618.41240475,0.000423,120]
[408188508,1773196243123,-1117.0,0.000423,60]
[408188509,1773196243133,-153.0,0.000424,120]
[408188510,1773196243142,-17815.68,0.000424,14]
[408188511,1773196243151,-786.0,0.00042466,120]
[408188512,1773196243160,-1556.9041907,0.000425,120]
[408188513,1773196243169,-150.0,0.00042546,120]
[408188514,1773196243178,-762.67773705,0.00042601,28]
[408188515,1773196243187,-153.0,0.000427,120]
[408188516,1773196243197,-163.2515758,0.000427,120]
[408188517,1773196243206,-1870.29025112,0.00042712,2]
[408188518,1773196243215,-1129.71811956,0.00042712,2]
[408188519,1773196243223,-300.0,0.00042712,2]
[408188520,1773196243232,-300.0,0.00042712,2]
[408188521,1773196243241,-300.0,0.00042712,2]
[408188522,1773196243251,-300.0,0.00042712,2]
[408188523,1773196243260,-300.0,0.00042712,2]
[408188524,1773196243269,-300.0,0.00042712,2]
[408188525,1773196243280,-300.0,0.00042712,2]
[408188526,1773196243290,-786.0,0.0004274,120]
[408188527,1773196243299,-4000.0,0.0004274,14]
[408188528,1773196243308,-781.25180054,0.0004274,10]
[408188529,1773196243317,-1061.91,0.00042888,2]
[408188530,1773196243327,-350.0,0.00042979,8]
[408188531,1773196243337,-162.0,0.00043,120]
[408188532,1773196243348,-10072.0,0.00043,120]
[408188533,1773196243358,-723.5598641,0.00043,120]
[408188534,1773196243367,-786.0,0.00043014,120]
[408188535,1773196243376,-250.0,0.00043068,120]
[408188536,1773196243386,-250.0,0.00043068,120]
[408188537,1773196243395,-250.0,0.00043068,120]
[408188538,1773196243405,-250.0,0.00043068,120]
[408188539,1773196243414,-250.0,0.00043068,120]
[408188540,1773196243424,-250.0,0.00043068,120]
[408188541,1773196243433,-250.0,0.00043068,120]
[408188542,1773196243443,-250.0,0.00043068,120]
[408188543,1773196243452,-250.0,0.00043068,120]
[408188544,1773196243461,-250.0,0.00043068,120]
[408188545,1773196243470,-182.55155922,0.00043255,98]
[408188546,1773196243480,-786.0,0.00043288,120]
[408188547,1773196243489,-251.86409613,0.00043462,2]
[408188548,1773196243498,-4935.01066749,0.00043557,2]
[408188549,1773196243507,-786.0,0.00043562,120]
[408188550,1773196243516,-153.0,0.000436,120]
[408188551,1773196243526,-151.0,0.00043641,120]
[408188552,1773196243535,-151.0,0.00043641,120]
[408188553,1773196243544,-151.0,0.00043641,120]
[408188554,1773196243554,-151.0,0.00043641,120]
[408188555,1773196243563,-1117.0,0.0004365,60]
[408188556,1773196243573,-11003.37751011,0.00043657,15]
[408188557,1773196243582,-500.0,0.00043835,120]
[408188558,1773196243594,-786.0,0.00043836,120]
[408188559,1773196243603,-2500.0,0.00043836,120]
[408188560,1773196243612,-151.0,0.00043836,120]
[408188561,1773196243622,-151.0,0.00043836,120]
[408188562,1773196243633,-151.0,0.00043836,120]
[408188563,1773196243642,-151.0,0.00043836,120]
[408188564,1773196243651,-151.0,0.00043836,120]
[408188565,1773196243661,-151.0,0.00043836,120]
[408188566,1773196243670,-151.0,0.00043836,120]
[408188567,1773196243678,-151.0,0.00043836,120]
[408188568,1773196243688,-151.0,0.00043836,120]
[408188569,1773196243698,-151.0,0.00043836,120]
[408188570,1773196243707,-151.0,0.00043836,120]
[408188571,1773196243717,-151.0,0.00043836,120]
[408188572,1773196243726,-151.0,0.00043836,120]
[408188573,1773196243736,-151.0,0.00043836,120]
[408188574,1773196243747,-151.0,0.00043836,120]
[408188575,1773196243756,-151.0,0.00043836,120]
[408188576,1773196243765,-151.0,0.00043836,120]
[408188577,1773196243775,-318.424943,0.00043836,120]
[408188578,1773196243785,-318.424943,0.00043836,120]
[408188579,1773196243794,-318.424943,0.00043836,120]
[408188580,1773196243804,-318.424943,0.00043836,120]
[408188581,1773196243813,-1000.0,0.00044,120]
[408188582,1773196243822,-304.27684042,0.00044,120]
[408188583,1773196243831,-272.29887845,0.00044,120]
[408188584,1773196243839,-151.0,0.00044,120]
[408188585,1773196243849,-151.0,0.00044,120]
[408188586,1773196243858,-151.0,0.00044,30]
[408188587,1773196243867,-164.039615,0.00044,120]
[408188588,1773196243877,-151.0,0.00044,120]
[408188589,1773196243886,-151.0,0.00044,120]
[408188590,1773196243895,-151.0,0.00044,120]
[408188591,1773196243905,-200.0,0.00044088,120]
[408188592,1773196243914,-153.0,0.000441,120]
[408188593,1773196243924,-786.0,0.0004411,120]
[408188594,1773196243933,-17815.68,0.000442,14]
[408188595,1773196243943,-151.0,0.000442,120]
[408188596,1773196243952,-367.99,0.0004423,7]
[408188597,1773196243961,-251.86409613,0.00044241,2]
[408188598,1773196243970,-518.56747682,0.00044246,120]
[408188599,1773196243979,-150.0,0.00044281,120]
[408188600,1773196243988,-786.0,0.00044384,120]
[408188601,1773196243998,-1078.96417025,0.0004444,120]
[408188602,1773196244008,-786.0,0.00044658,120]
[408188603,1773196244018,-153.0,0.000448,120]
[408188604,1773196244027,-399.76705102,0.000449,30]
[408188605,1773196244036,-326.62,0.00044932,120]
[408188606,1773196244045,-550.0,0.00045,120]
[408188607,1773196244054,-500.0,0.00045,120]
[408188608,1773196244064,-1500.0,0.00045,14]
[408188609,1773196244073,-1500.0,0.00045,14]
[408188610,1773196244082,-1500.0,0.00045,14]
[408188611,1773196244092,-10072.0,0.00045,120]
[408188612,1773196244101,-1000.0,0.00045,120]
[408188613,1773196244111,-1117.0,0.00045,60]
[408188614,1773196244119,-150.0,0.00045,85]
[408188615,1773196244128,-151.0,0.00045,120]
[408188616,1773196244137,-404.42,0.00045,120]
[408188617,1773196244147,-301.08,0.00045,120]
[408188618,1773196244156,-647.36,0.00045,120]
[408188619,1773196244165,-372.25,0.00045,120]
[408188620,1773196244174,-634.63,0.00045,30]
[408188621,1773196244183,-194.85,0.00045,30]
[408188622,1773196244192,-240.46,0.00045,30]
[408188623,1773196244201,-5330.4026,0.00045017,30]
[408188624,1773196244211,-251.86409613,0.0004502,2]
[408188625,1773196244220,-294.76356774,0.00045123,90]
[408188626,1773196244229,-378.80910296,0.00045205,120]
[408188627,1773196244239,-161.0,0.00045295,16]
[408188628,1773196244248,-361.37942272,0.00045448,2]
[408188629,1773196244258,-153.0,0.000455,120]
[408188630,1773196244267,-251.86409613,0.00045799,2]
[408188631,1773196244276,-2738.0863257,0.000458,120]
[408188632,1773196244285,-513.52736842,0.000459,2]
[408188633,1773196244294,-1974.33359064,0.00046,120]
[408188634,1773196244303,-959.70416936,0.00046,120]
[408188635,1773196244313,-2092.49350631,0.00046,120]
[408188636,1773196244322,-153.0,0.00046,120]
[408188637,1773196244331,-1000.0,0.00046,120]
[408188638,1773196244340,-151.94356594,0.00046,120]
[408188639,1773196244349,-176.98,0.00046,14]
[408188640,1773196244358,-366.56608129,0.00046058,120]
[408188641,1773196244367,-1117.0,0.0004635,60]
[408188642,1773196244376,-502.0,0.000464,29]
[408188643,1773196244385,-1640.91702017,0.00046457,18]
[408188644,1773196244394,-1640.91702017,0.00046457,18]
[408188645,1773196244403,-1640.91702017,0.00046457,18]
[408188646,1773196244413,-150.0,0.00046495,120]
[408188647,1773196244423,-150.87036366,0.00046499,120]
[408188648,1773196244431,-668.01,0.000465,30]
[408188649,1773196244440,-206.90028616,0.00046575,60]
[408188650,1773196244449,-500.0,0.00046575,60]
[408188651,1773196244458,-3199.0,0.00046575,120]
[408188652,1773196244467,-300.0,0.00046575,120]
[408188653,1773196244476,-300.0,0.00046575,120]
[408188654,1773196244485,-300.0,0.00046575,120]
[408188655,1773196244494,-300.0,0.00046575,120]
[408188656,1773196244503,-300.0,0.00046575,120]
[408188657,1773196244511,-300.0,0.00046575,120]
[408188658,1773196244520,-219.447258,0.00046575,120]
[408188659,1773196244530,-251.86409613,0.00046578,2]
[408188660,1773196244539,-4935.01066747,0.00046729,2]
[408188661,1773196244548,-578.89,0.00046734,120]
[408188662,1773196244558,-900.59642792,0.0004675,120]
[408188663,1773196244567,-390.52860306,0.000468,120]
[408188664,1773196244576,-650.0,0.000469,120]
[408188665,1773196244585,-153.0,0.000469,120]
[408188666,1773196244598,-751.12555239,0.000469,120]
[408188667,1773196244608,-3798.8277449,0.00047,60]
[408188668,1773196244618,-10072.0,0.00047,120]
[408188669,1773196244627,-1000.0,0.00047,120]
[408188670,1773196244637,-1000.0,0.000471,120]
[408188671,1773196244647,-1000.0,0.000471,120]
[408188672,1773196244657,-233.73600968,0.0004715,120]
[408188673,1773196244820,-150.0,0.0002,7]
[408188674,1773196244829,-180.03,0.000261,14]
[408188675,1773196244838,-20223.63,0.000426,14]
[408188676,1773196244847,-20223.63,0.000441,14]
[408188677,1773196244855,-1266.26399032,0.0004715,120]
[408188678,1773196244864,-1000.0,0.000472,120]
[408188679,1773196244873,-153.0,0.000472,120]
[408188680,1773196244882,-288.01,0.00047245,120]
[408188681,1773196244891,-634.63,0.0004725,30]
[408188682,1773196244900,-194.85,0.0004725,30]
[408188683,1773196244910,-163.44666261,0.000473,90]
[408188684,1773196244919,-11003.37751011,0.00047356,15]
[408188685,1773196244929,-762.67773705,0.00047357,28]
[408188686,1773196244938,-197.70766094,0.00047357,9]
[408188687,1773196244948,-8050.27658682,0.00047357,2]
[408188688,1773196244957,-170.38451406,0.00047357,120]
[408188689,1773196244967,-251.86409613,0.00047357,2]
[408188690,1773196244976,-151.0,0.00047438,120]
[408188691,1773196244985,-151.0,0.00047438,120]
[408188692,1773196244994,-151.0,0.00047438,120]
[408188693,1773196245003,-151.0,0.00047438,120]
[408188694,1773196245012,-151.0,0.00047438,120]
[408188695,1773196245021,-151.0,0.00047438,120]
[408188696,1773196245031,-151.0,0.00047438,120]
[408188697,1773196245039,-151.0,0.00047438,120]
[408188698,1773196245049,-213.244639,0.00047438,120]
[408188699,1773196245059,-190.16,0.00047448,2]
[408188700,1773196245068,-154.08029391,0.00047452,30]
[408188701,1773196245077,-154.96066654,0.00047452,30]
[408188702,1773196245087,-153.99327857,0.00047452,30]
[408188703,1773196245097,-155.97528234,0.00047452,30]
[408188704,1773196245106,-150.0,0.00047452,30]
[408188705,1773196245115,-152.12389572,0.00047452,30]
[408188706,1773196245125,-151.0,0.00047456,120]
[408188707,1773196245135,-151.0,0.00047456,120]
[408188708,1773196245144,-151.0,0.00047456,120]
[408188709,1773196245153,-151.0,0.00047456,120]
[408188710,1773196245163,-151.0,0.00047456,120]
[408188711,1773196245172,-151.0,0.00047456,120]
[408188712,1773196245181,-151.0,0.00047456,120]
[408188713,1773196245190,-151.0,0.00047456,120]
[408188714,1773196245199,-151.0,0.00047456,120]
[408188715,1773196245208,-151.0,0.00047456,120]
[408188716,1773196245219,-151.0,0.00047456,120]
[408188717,1773196245228,-151.0,0.00047456,120]
[408188718,1773196245238,-151.0,0.00047456,120]
[408188719,1773196245247,-159.091526,0.00047456,120]
[408188720,1773196245257,-151.0,0.00047456,120]
[408188721,1773196245266,-151.0,0.00047456,120]
[408188722,1773196245275,-151.0,0.00047456,120]
[408188723,1773196245284,-151.0,0.00047456,120]
[408188724,1773196245294,-151.0,0.00047456,120]
[408188725,1773196245303,-151.0,0.00047456,120]
[408188726,1773196245313,-151.0,0.00047456,120]
[408188727,1773196245322,-297.678256,0.00047456,120]
[408188728,1773196245335,-151.0,0.00047456,120]
[408188729,1773196245344,-151.0,0.00047456,120]
[408188730,1773196245354,-151.0,0.00047456,120]
[408188731,1773196245363,-151.0,0.00047456,120]
[408188732,1773196245373,-151.0,0.00047456,120]
[408188733,1773196245383,-151.0,0.00047456,120]
[408188734,1773196245393,-287.242674,0.00047456,120]
[408188735,1773196245404,-283.098764,0.00047456,120]
[408188736,1773196245415,-151.0,0.00047456,120]
[408188737,1773196245424,-151.0,0.00047456,120]
[408188738,1773196245433,-151.0,0.00047456,120]
[408188739,1773196245443,-151.0,0.00047456,120]
[408188740,1773196245453,-151.0,0.00047456,120]
[408188741,1773196245463,-151.0,0.00047456,120]
[408188742,1773196245473,-151.0,0.00047456,120]
[408188743,1773196245483,-151.0,0.00047456,120]
[408188744,1773196245492,-151.0,0.00047456,120]
[408188745,1773196245503,-151.0,0.00047456,120]
[408188746,1773196245513,-151.0,0.00047456,120]
[408188747,1773196245522,-151.0,0.00047456,120]
[408188748,1773196245532,-243.305221,0.00047456,120]
[408188749,1773196245541,-151.0,0.00047456,120]
[408188750,1773196245550,-165.705384,0.00047456,120]
[408188751,1773196245560,-151.0,0.00047456,120]
[408188752,1773196245569,-151.0,0.00047456,120]
[408188753,1773196245578,-151.0,0.00047456,120]
[408188754,1773196245588,-151.0,0.00047456,120]
[408188755,1773196245600,-151.0,0.00047456,120]
[408188756,1773196245610,-151.0,0.00047456,120]
[408188757,1773196245619,-151.0,0.00047456,120]
[408188758,1773196245631,-151.0,0.00047456,120]
[408188759,1773196245640,-151.0,0.00047456,120]
[408188760,1773196245650,-151.0,0.00047456,120]
[408188761,1773196245659,-160.680444,0.00047456,120]
[408188762,1773196245672,-151.0,0.00047456,120]
[408188763,1773196245681,-151.0,0.00047456,120]
[408188764,1773196245691,-151.0,0.00047456,120]
[408188765,1773196245700,-151.0,0.00047456,120]
[408188766,1773196245709,-151.0,0.00047456,120]
[408188767,1773196245719,-151.0,0.00047456,120]
[408188768,1773196245729,-151.0,0.00047456,120]
[408188769,1773196245738,-151.0,0.00047456,120]
[408188770,1773196245747,-151.0,0.00047456,120]
[408188771,1773196245757,-151.0,0.00047456,120]
[408188772,1773196245768,-151.0,0.00047456,120]
[408188773,1773196245778,-151.0,0.00047456,120]
[408188774,1773196245788,-151.0,0.00047456,120]
[408188775,1773196245799,-151.0,0.00047456,120]
[408188776,1773196245809,-247.572983,0.00047456,120]
[408188777,1773196245819,-151.0,0.00047456,120]
[408188778,1773196245830,-151.0,0.00047456,120]
[408188779,1773196245839,-151.0,0.00047456,120]
[408188780,1773196245849,-151.0,0.00047456,120]
[408188781,1773196245859,-151.0,0.00047456,120]
[408188782,1773196245869,-151.0,0.00047456,120]
[408188783,1773196245878,-151.0,0.00047456,120]
[408188785,1773196245887,-151.0,0.00047456,120]
[408188786,1773196245897,-168.283615,0.00047456,120]
[408188788,1773196245907,-318.424943,0.00047456,120]
[408188790,1773196245917,-318.424943,0.00047456,120]
[408188791,1773196245926,-318.424943,0.00047456,120]
[408188792,1773196245936,-318.424943,0.00047456,120]
[408188793,1773196245946,-318.424943,0.00047456,120]
[408188794,1773196245956,-318.424943,0.00047456,120]
[408188795,1773196245965,-318.424943,0.00047456,120]
[408188796,1773196245975,-318.424943,0.00047456,120]
[408188797,1773196245984,-318.424943,0.00047456,120]
[408188798,1773196245995,-318.424943,0.00047456,120]
[408188799,1773196246005,-318.424943,0.00047456,120]
[408188800,1773196246015,-318.424943,0.00047456,120]
[408188801,1773196246025,-318.424943,0.00047456,120]
[408188802,1773196246034,-318.424943,0.00047456,120]
[408188803,1773196246044,-318.424943,0.00047456,120]
[408188804,1773196246054,-318.424935,0.00047456,120]
[408188805,1773196246064,-1335.7,0.00047456,2]
[408188806,1773196246074,-29032.4011857,0.00047456,54]
[408188807,1773196246084,-500.0,0.00047457,120]
[408188808,1773196246093,-597.51,0.00047457,120]
[408188809,1773196246106,-4713726.92710581,0.00047457,20]
[408188810,1773196246358,-681.68868639,0.00027877,2]
[408188811,1773196246374,-503.0,0.00027877,2]
[408188812,1773196246385,-466.789003,0.00027877,2]
[408188813,1773196246448,-809.52231061,0.00027877,2]
[408188814,1773196246458,-2461.0,0.00030877,2]
[408188815,1773196246468,-2461.0,0.00033877,2]
[408188816,1773196246477,-2461.0,0.00036877,2]
[408188817,1773196246487,-2461.0,0.00039877,2]
[408188818,1773196246498,-2461.0,0.00042877,2]
[408188819,1773196246507,-1126.11873467,0.00042958,50]
[408188820,1773196246518,-1007.66184889,0.00042958,50]
[408188821,1773196246528,-1480.193,0.00045877,2]
[408188822,1773196246537,-1640.91702017,0.00046457,18]
[408188823,1773196246548,-28389.09185234,0.00047457,20]
[408188825,1773196345600,984.89016242,8.6e-05,2]
[408188826,1773196346459,500.0,8.6e-05,2]
[408188827,1773196348479,500.0,8.6e-05,2]
[408188828,1773196348988,500.0,8.6e-05,2]
[408188829,1773196349461,500.0,8.6e-05,2]
[408188830,1773196349930,500.0,8.6e-05,2]
[408188831,1773196350413,653.34644536,8.6e-05,2]
[408188832,1773196354310,500.0,8.6e-05,2]
[408188833,1773196354786,500.0,8.6e-05,2]
[408188834,1773196355286,500.0,8.6e-05,2]
[408188835,1773196356284,500.0,8.6e-05,2]
[408188836,1773196356755,500.0,8.6e-05,2]
[408188837,1773196357258,878.66620574,8.6e-05,2]
[408188838,1773196381299,300.0,0.00013954,2]
[408188839,1773196382037,156.0,0.00013954,2]
[408188840,1773196386454,497.54851527,0.00013954,2]
[408188841,1773196399775,500.0,0.00013954,2]
[408188842,1773196399818,500.0,0.00013954,2]
[408188843,1773196399876,500.0,0.00013954,2]
[408188844,1773196399932,500.0,0.00013954,2]
[408188845,1773196399983,500.0,0.00013954,2]
[408188846,1773196400040,286.22754881,0.00013954,2]
[408188847,1773196428370,438.01500328,0.00013954,2]
[408188848,1773196437593,500.0,0.00013954,2]
[408188849,1773196437643,290.02021455,0.00013954,2]
[408188850,1773196441487,300.0,0.00013954,2]
[408188913,1773196450827,500.0,0.00013954,2]
[408188914,1773196450885,290.02021455,0.00013954,2]
[408188915,1773196464007,500.0,0.00013954,2]
[408188916,1773196464040,290.02021455,0.00013954,2]
[408188917,1773196481502,500.0,0.00013954,2]
[408188918,1773196481546,290.02021455,0.00013954,2]
[408188923,1773196494870,500.0,0.00013954,2]
[408188924,1773196494900,361.20938221,0.00013954,2]
[408188925,1773196495091,500.0,0.00013954,2]
[408188926,1773196495188,500.0,0.00013954,2]
[408188927,1773196495215,500.0,0.00013954,2]
[408188929,1773196499945,0.92869223,0.00013954,2]
[408188930,1773196499966,246.48811698,0.00013954,2]
[408188931,1773196500259,500.0,0.00013954,2]
[408188932,1773196500319,500.0,0.00013954,2]
[408188933,1773196500367,422.03638619,0.00013954,2]
[408188934,1773196501302,1200.0,0.00013954,2]
[408188935,1773196524150,173.19176644,0.00013954,2]
[408188936,1773196524179,500.0,0.00013954,2]
[408188937,1773196524212,290.02021455,0.00013954,2]
[408188938,1773196524522,159.24449362,0.00013954,2]
[408188939,1773196537790,500.0,0.00013954,2]
[408188940,1773196537825,500.0,0.00013954,2]
[408188941,1773196537862,422.03638619,0.00013954,2]
[408188944,1773196561231,300.0,0.00013954,2]
[408188945,1773196562206,150.0,0.00013954,2]
[408188946,1773196584166,500.0,0.00013954,2]
[408188947,1773196584206,500.0,0.00013954,2]
[408188948,1773196584262,500.0,0.00013954,2]
[408188949,1773196584317,328.43443361,0.00013954,2]
[408188950,1773196591463,1696.4899363,0.00013954,2]
[408188951,1773196621202,300.0,0.00013954,2]
[408188952,1773196628979,312.06826612,0.00013699,2]
[408188953,1773196629002,34.39173388,0.00013699,2]
[408188954,1773196644761,500.0,8.955e-05,2]
[408188955,1773196647024,500.0,8.955e-05,2]
[408188956,1773196647529,500.0,8.955e-05,2]
[408188957,1773196647996,500.0,8.955e-05,2]
[408188958,1773196653355,500.0,8.955e-05,2]
[408188959,1773196653902,500.0,8.955e-05,2]
[408188960,1773196654390,500.0,8.955e-05,2]
[408188961,1773196681358,300.0,0.00013954,2]
[408188962,1773196742079,300.0,0.00013954,2]
[408188963,1773196742561,150.0,0.00013954,2]
[408188964,1773196801123,1200.0,0.00013954,2]
[408188965,1773196805428,167.14,0.00013945,2]
[408188966,1773196805638,167.14,0.00013945,2]
[408188967,1773196807002,4181.33826612,0.00013945,2]
[408188968,1773196807023,698.24173388,0.00013945,2]
[408188969,1773196807217,4879.58,0.00013945,2]
[408188970,1773196830041,1856.91968678,0.00013855,2]
[408188971,1773196835981,527.53128438,0.00013855,2]
[408188972,1773196857992,6144.0,0.0002,120]
[408188973,1773196863903,500.0,0.00013954,2]
[408188974,1773196869125,1000.0,0.000135,2]
[408188975,1773196876250,500.0,0.00013954,2]
[408188976,1773196878964,500.0,0.00013,2]
[408188977,1773196885923,1278.70990949,0.00013855,2]
[408188978,1773196892769,173.92554366,0.00013676,2]
[408188979,1773196892798,2991.67,0.00013676,2]
[408188980,1773196922010,150.0,0.00013954,2]
[408188981,1773196923863,2378.17326247,0.00013855,2]
[408188982,1773196923885,7884.57106587,0.00013855,2]
[408188983,1773196926492,348.28396069,0.00013954,2]
[408188984,1773196939828,625.58892458,0.00013954,2]
[408188985,1773196944795,4727.37869607,0.00013855,2]
[408188986,1773196948544,306.6105023,0.00013954,2]
[408188987,1773196986639,170000.0,0.0002,120]
[408188988,1773197240935,500.0,8.6e-05,2]
[408188989,1773197241537,500.0,8.6e-05,2]
[408188990,1773197250100,500.0,8.6e-05,2]
[408188991,1773197251324,500.0,8.6e-05,2]
[408188992,1773197251784,500.0,8.6e-05,2]
[408188993,1773197256027,500.0,8.6e-05,2]
[408188994,1773197367175,-448.51931446,0.0001373,2]
[408189000,1773197431672,-470.9133467,0.0001373,2]
[408189001,1773197431684,-875.49,0.0001373,2]
[408189002,1773197431695,-1319.98203148,0.0001373,2]
[408189003,1773197431725,-344.95997957,0.0001373,2]
[408189005,1773197431897,-869.72928149,0.0001373,2]
[408189007,1773197431909,-933.29910589,0.0001373,2]
[408189009,1773197431921,-2443.92633187,0.0001373,2]
[408189011,1773197431930,-263.0,0.0001373,2]
[408189013,1773197431939,-1200.0,0.00013798,2]
[408189015,1773197431949,-300.0,0.00013799,2]
[408189017,1773197431958,-300.0,0.00013799,2]
[408189019,1773197431967,-300.0,0.00013799,2]
[408189021,1773197431977,-300.0,0.00013799,2]
[408189023,1773197431992,-253.15858476,0.000138,2]
[408189025,1773197432002,-455.84518553,0.000138,2]
[408189027,1773197432011,-419.46261007,0.000138,2]
[408189029,1773197432020,-153.24795763,0.00013855,2]